fUSD/lending_fUSD_20260514
["ID","MTS","AMOUNT","RATE_DAILY","PERIOD"]
[422250264,1778765440000,-571.05,0.00013698,2]
[422250292,1778765440000,-569.5,0.00013698,2]
[422250320,1778765440000,-553.75,0.00013698,2]
[422250297,1778765440000,-569.5,0.00013698,2]
[422250300,1778765440000,-569.5,0.00013698,2]
[422250303,1778765440000,-569.5,0.00013698,2]
[422250302,1778765440000,-569.5,0.00013698,2]
[422250301,1778765440000,-569.5,0.00013698,2]
[422250304,1778765440000,-569.5,0.00013698,2]
[422250305,1778765440000,-569.5,0.00013698,2]
[422250309,1778765440000,-553.75,0.00013698,2]
[422250306,1778765440000,-569.5,0.00013698,2]
[422250308,1778765440000,-553.75,0.00013698,2]
[422250307,1778765440000,-553.75,0.00013698,2]
[422250293,1778765440000,-569.5,0.00013698,2]
[422250311,1778765440000,-553.75,0.00013698,2]
[422250312,1778765440000,-553.75,0.00013698,2]
[422250315,1778765440000,-553.75,0.00013698,2]
[422250314,1778765440000,-553.75,0.00013698,2]
[422250313,1778765440000,-553.75,0.00013698,2]
[422250325,1778765440000,-500.0,0.00013698,2]
[422250324,1778765440000,-500.0,0.00013698,2]
[422250323,1778765440000,-553.75,0.00013698,2]
[422250316,1778765440000,-553.75,0.00013698,2]
[422250317,1778765440000,-553.75,0.00013698,2]
[422250318,1778765440000,-553.75,0.00013698,2]
[422250322,1778765440000,-553.75,0.00013698,2]
[422250321,1778765440000,-553.75,0.00013698,2]
[422250263,1778765440000,-571.05,0.00013698,2]
[422250310,1778765440000,-553.75,0.00013698,2]
[422250296,1778765440000,-569.5,0.00013698,2]
[422250319,1778765440000,-553.75,0.00013698,2]
[422250294,1778765440000,-569.5,0.00013698,2]
[422250265,1778765440000,-571.05,0.00013698,2]
[422250266,1778765440000,-571.05,0.00013698,2]
[422250272,1778765440000,-500.0,0.00013698,2]
[422250267,1778765440000,-571.05,0.00013698,2]
[422250270,1778765440000,-500.0,0.00013698,2]
[422250268,1778765440000,-503.35448234,0.00013698,2]
[422250262,1778765440000,-571.05,0.00013698,2]
[422250273,1778765440000,-500.0,0.00013698,2]
[422250291,1778765440000,-569.5,0.00013698,2]
[422250271,1778765440000,-500.0,0.00013698,2]
[422250285,1778765440000,-500.0,0.00013698,2]
[422250286,1778765440000,-500.0,0.00013698,2]
[422250275,1778765440000,-500.0,0.00013698,2]
[422250274,1778765440000,-500.0,0.00013698,2]
[422250269,1778765440000,-500.0,0.00013698,2]
[422250278,1778765440000,-500.0,0.00013698,2]
[422250295,1778765440000,-569.5,0.00013698,2]
[422250276,1778765440000,-500.0,0.00013698,2]
[422250298,1778765440000,-569.5,0.00013698,2]
[422250288,1778765440000,-500.0,0.00013698,2]
[422250290,1778765440000,-569.5,0.00013698,2]
[422250287,1778765440000,-500.0,0.00013698,2]
[422250289,1778765440000,-500.0,0.00013698,2]
[422250277,1778765440000,-500.0,0.00013698,2]
[422250281,1778765440000,-500.0,0.00013698,2]
[422250279,1778765440000,-500.0,0.00013698,2]
[422250282,1778765440000,-500.0,0.00013698,2]
[422250284,1778765440000,-500.0,0.00013698,2]
[422250280,1778765440000,-500.0,0.00013698,2]
[422250283,1778765440000,-500.0,0.00013698,2]
[422250367,1778765441000,-268.58058186,0.00014247,21]
[422250366,1778765441000,-166.66,0.00014247,2]
[422250377,1778765441000,-6453.0,0.00014719,2]
[422250378,1778765441000,-327.81,0.00014795,2]
[422250363,1778765441000,-166.1,0.00014029,2]
[422250354,1778765441000,-14253.66,0.00013699,2]
[422250364,1778765441000,-166.66,0.0001411,2]
[422250361,1778765441000,-789.58,0.00013973,2]
[422250365,1778765441000,-1252.0,0.00014211,2]
[422250360,1778765441000,-166.66,0.00013973,2]
[422250359,1778765441000,-166.66,0.00013836,2]
[422250362,1778765441000,-5016.27,0.00014,2]
[422250368,1778765441000,-789.58,0.00014247,2]
[422250382,1778765441000,-500.0,0.00015,3]
[422250372,1778765441000,-25430.50769213,0.00014537,2]
[422250371,1778765441000,-789.58,0.00014521,2]
[422250370,1778765441000,-166.66,0.00014384,2]
[422250374,1778765441000,-165.0519984,0.00014583,2]
[422250376,1778765441000,-1613.0,0.00014719,2]
[422250375,1778765441000,-170.0,0.00014607,2]
[422250373,1778765441000,-1000.0,0.00014571,7]
[422250386,1778765441000,-500.0,0.00015339,2]
[422250379,1778765441000,-10000.0,0.0001485,2]
[422250387,1778765441000,-151.0,0.00015339,2]
[422250381,1778765441000,-150.0,0.00014973,2]
[422250389,1778765441000,-151.0,0.00015339,2]
[422250356,1778765441000,-789.58,0.00013699,2]
[422250369,1778765441000,-1206.80193105,0.00014293,2]
[422250357,1778765441000,-1340.58,0.000137,2]
[422250342,1778765441000,-500.0,0.00013698,2]
[422250355,1778765441000,-166.66,0.00013699,2]
[422250380,1778765441000,-192.02289105,0.000149,2]
[422250339,1778765441000,-160.64410058,0.00013698,2]
[422250326,1778765441000,-500.0,0.00013698,2]
[422250331,1778765441000,-500.0,0.00013698,2]
[422250338,1778765441000,-500.0,0.00013698,2]
[422250330,1778765441000,-500.0,0.00013698,2]
[422250328,1778765441000,-500.0,0.00013698,2]
[422250329,1778765441000,-500.0,0.00013698,2]
[422250337,1778765441000,-500.0,0.00013698,2]
[422250332,1778765441000,-500.0,0.00013698,2]
[422250335,1778765441000,-500.0,0.00013698,2]
[422250334,1778765441000,-500.0,0.00013698,2]
[422250336,1778765441000,-500.0,0.00013698,2]
[422250333,1778765441000,-500.0,0.00013698,2]
[422250340,1778765441000,-500.0,0.00013698,2]
[422250343,1778765441000,-500.0,0.00013698,2]
[422250341,1778765441000,-500.0,0.00013698,2]
[422250351,1778765441000,-236.51228085,0.00013698,2]
[422250352,1778765441000,-2500.0,0.00013699,2]
[422250353,1778765441000,-200.0,0.00013699,2]
[422250350,1778765441000,-500.0,0.00013698,2]
[422250347,1778765441000,-500.0,0.00013698,2]
[422250344,1778765441000,-500.0,0.00013698,2]
[422250348,1778765441000,-500.0,0.00013698,2]
[422250346,1778765441000,-500.0,0.00013698,2]
[422250345,1778765441000,-500.0,0.00013698,2]
[422250349,1778765441000,-500.0,0.00013698,2]
[422250358,1778765441000,-163.16,0.000137,2]
[422250384,1778765441000,-200.0,0.00015339,2]
[422250327,1778765441000,-500.0,0.00013698,2]
[422250385,1778765441000,-151.0,0.00015339,2]
[422250416,1778765441000,-151.0,0.00015339,2]
[422250419,1778765441000,-151.0,0.00015339,2]
[422250425,1778765441000,-200.0,0.00015887,2]
[422250420,1778765441000,-151.0,0.00015339,2]
[422250426,1778765441000,-2005.9555727,0.00015887,2]
[422250421,1778765441000,-1659.0,0.00015385,2]
[422250427,1778765441000,-150.0,0.000159,2]
[422250424,1778765441000,-25430.50769213,0.0001572,2]
[422250429,1778765441000,-625.0,0.00015952,2]
[422250428,1778765441000,-1354.0,0.00015952,2]
[422250432,1778765441000,-1815.0,0.00016191,2]
[422250431,1778765441000,-8183.64,0.00016116,2]
[422250435,1778765441000,-1223.0,0.00016345,2]
[422250430,1778765441000,-1584.0,0.00016032,2]
[422250433,1778765441000,-9035.0,0.00016191,2]
[422250434,1778765441000,-1270.0,0.00016345,2]
[422250437,1778765441000,-200.0,0.00016435,2]
[422250438,1778765441000,-2080.17592889,0.00016435,2]
[422250439,1778765441000,-260.61,0.00016438,2]
[422250447,1778765441000,-200.0,0.00016983,2]
[422250436,1778765441000,-8018.0,0.000164,2]
[422250440,1778765441000,-480.43,0.00016438,2]
[422250441,1778765441000,-1340.58,0.000165,2]
[422250443,1778765441000,-156.57,0.00016712,2]
[422250444,1778765441000,-420.38,0.00016767,2]
[422250445,1778765441000,-300.0,0.00016901,2]
[422250446,1778765441000,-25430.50769213,0.00016902,2]
[422250418,1778765441000,-1934.38338737,0.00015339,2]
[422250422,1778765441000,-1206.80193105,0.00015415,2]
[422250442,1778765441000,-1206.80193105,0.00016536,2]
[422250423,1778765441000,-2129.0,0.00015637,2]
[422250417,1778765441000,-151.0,0.00015339,2]
[422250388,1778765441000,-151.0,0.00015339,2]
[422250390,1778765441000,-151.0,0.00015339,2]
[422250392,1778765441000,-151.0,0.00015339,2]
[422250393,1778765441000,-151.0,0.00015339,2]
[422250397,1778765441000,-151.0,0.00015339,2]
[422250394,1778765441000,-151.0,0.00015339,2]
[422250398,1778765441000,-151.0,0.00015339,2]
[422250396,1778765441000,-151.0,0.00015339,2]
[422250401,1778765441000,-151.0,0.00015339,2]
[422250402,1778765441000,-151.0,0.00015339,2]
[422250399,1778765441000,-151.0,0.00015339,2]
[422250391,1778765441000,-151.0,0.00015339,2]
[422250395,1778765441000,-151.0,0.00015339,2]
[422250383,1778765441000,-480.43,0.00015068,2]
[422250413,1778765441000,-151.0,0.00015339,2]
[422250400,1778765441000,-151.0,0.00015339,2]
[422250415,1778765441000,-151.0,0.00015339,2]
[422250410,1778765441000,-151.0,0.00015339,2]
[422250411,1778765441000,-151.0,0.00015339,2]
[422250412,1778765441000,-151.0,0.00015339,2]
[422250405,1778765441000,-500.0,0.00015339,2]
[422250408,1778765441000,-151.0,0.00015339,2]
[422250414,1778765441000,-151.0,0.00015339,2]
[422250404,1778765441000,-151.0,0.00015339,2]
[422250407,1778765441000,-151.0,0.00015339,2]
[422250403,1778765441000,-151.0,0.00015339,2]
[422250406,1778765441000,-151.0,0.00015339,2]
[422250409,1778765441000,-151.0,0.00015339,2]
[422250494,1778765442000,-202.0,0.0002,2]
[422250486,1778765442000,-208.0,0.0002,2]
[422250496,1778765442000,-175.8020267,0.0002,2]
[422250495,1778765442000,-175.8020267,0.0002,2]
[422250479,1778765442000,-553.75,0.00019344,2]
[422250482,1778765442000,-1340.58,0.000194,2]
[422250480,1778765442000,-1270.0,0.00019345,2]
[422250481,1778765442000,-1223.0,0.00019345,2]
[422250484,1778765442000,-1206.80193105,0.000199,2]
[422250487,1778765442000,-13346.62449662,0.0002,2]
[422250485,1778765442000,-171.30864861,0.00019974,2]
[422250488,1778765442000,-166.0,0.0002,2]
[422250500,1778765442000,-5117.0,0.0002,2]
[422250490,1778765442000,-4279.0,0.0002,2]
[422250492,1778765442000,-15000.0,0.0002,2]
[422250493,1778765442000,-6111.0,0.0002,2]
[422250491,1778765442000,-1398.0,0.0002,2]
[422250483,1778765442000,-2586.85809042,0.00019723,2]
[422250497,1778765442000,-175.8020267,0.0002,2]
[422250501,1778765442000,-153.0,0.0002,2]
[422250499,1778765442000,-175.80202671,0.0002,2]
[422250498,1778765442000,-175.8020267,0.0002,2]
[422250505,1778765442000,-500.0,0.0002,2]
[422250502,1778765442000,-523.0,0.0002,2]
[422250503,1778765442000,-169.0,0.0002,2]
[422250504,1778765442000,-451.0,0.0002,2]
[422250489,1778765442000,-2566.0,0.0002,2]
[422250476,1778765442000,-500.0,0.00019344,2]
[422250469,1778765442000,-625.0,0.00018952,2]
[422250474,1778765442000,-180.24546421,0.00019228,2]
[422250506,1778765442000,-2367.0,0.0002,2]
[422250448,1778765442000,-2157.14243826,0.00016983,2]
[422250450,1778765442000,-571.05,0.00017072,2]
[422250460,1778765442000,-2319.72410669,0.00018079,2]
[422250451,1778765442000,-165.0519984,0.00017417,2]
[422250449,1778765442000,-500.0,0.00017072,2]
[422250459,1778765442000,-500.0,0.00018078,2]
[422250458,1778765442000,-163.0,0.00018035,2]
[422250452,1778765442000,-200.0,0.00017531,2]
[422250453,1778765442000,-2236.95670848,0.00017531,2]
[422250454,1778765442000,-1206.80193105,0.00017657,2]
[422250457,1778765442000,-165.12126188,0.00018,2]
[422250455,1778765442000,-817.53776541,0.00017721,2]
[422250456,1778765442000,-1704.0,0.0001781,2]
[422250462,1778765442000,-25430.50769213,0.00018084,2]
[422250472,1778765442000,-6111.0,0.00019101,4]
[422250463,1778765442000,-165.12126188,0.000182,2]
[422250461,1778765442000,-300.0,0.00018083,2]
[422250465,1778765442000,-2572.9,0.0001841,2]
[422250466,1778765442000,-2405.55389864,0.00018627,2]
[422250467,1778765442000,-1206.80193105,0.00018779,2]
[422250471,1778765442000,-2812.1830191,0.00019,2]
[422250468,1778765442000,-1354.0,0.00018952,2]
[422250470,1778765442000,-2845.5,0.00019,2]
[422250473,1778765442000,-2494.55939289,0.00019175,2]
[422250475,1778765442000,-25430.50769213,0.00019266,2]
[422250477,1778765442000,-500.0,0.00019344,2]
[422250478,1778765442000,-569.5,0.00019344,2]
[422250464,1778765442000,-165.12126188,0.000184,2]
[422250507,1778765442000,-200.0,0.0002,10]
[422250520,1778765442000,-500.0,0.00020547,2]
[422250536,1778765442000,-4985.79,0.00020548,2]
[422250545,1778765442000,-4985.79,0.00020548,2]
[422250544,1778765442000,-4985.79,0.00020548,2]
[422250547,1778765442000,-4985.79,0.00020548,2]
[422250558,1778765442000,-208.0,0.00021,2]
[422250548,1778765442000,-4985.79,0.00020548,2]
[422250557,1778765442000,-307.92,0.00020975,2]
[422250559,1778765442000,-15000.0,0.00021,2]
[422250551,1778765442000,-4985.79,0.00020548,2]
[422250552,1778765442000,-4985.79,0.00020548,2]
[422250553,1778765442000,-4985.79,0.00020548,2]
[422250556,1778765442000,-1000.0,0.00020928,7]
[422250550,1778765442000,-4985.79,0.00020548,2]
[422250560,1778765442000,-6111.0,0.00021,2]
[422250555,1778765442000,-2781.82699784,0.00020819,2]
[422250554,1778765442000,-500.0,0.00020817,2]
[422250565,1778765442000,-15000.0,0.00021,2]
[422250567,1778765442000,-6111.0,0.00021,2]
[422250561,1778765442000,-15000.0,0.00021,2]
[422250569,1778765442000,-15000.0,0.00021,2]
[422250562,1778765442000,-6111.0,0.00021,2]
[422250563,1778765442000,-2566.0,0.00021,2]
[422250564,1778765442000,-4279.0,0.00021,2]
[422250572,1778765442000,-202.0,0.00021,2]
[422250571,1778765442000,-6111.0,0.00021,2]
[422250573,1778765442000,-153.0,0.00021,2]
[422250509,1778765442000,-171.33,0.00020014,2]
[422250541,1778765442000,-4985.79,0.00020548,2]
[422250543,1778765442000,-4985.79,0.00020548,2]
[422250549,1778765442000,-4985.79,0.00020548,2]
[422250539,1778765442000,-4985.79,0.00020548,2]
[422250537,1778765442000,-4985.79,0.00020548,2]
[422250510,1778765442000,-171.33,0.0002008,2]
[422250508,1778765442000,-18047.92,0.0002,2]
[422250511,1778765442000,-171.33,0.00020085,2]
[422250512,1778765442000,-171.33,0.00020092,2]
[422250516,1778765442000,-2572.9,0.00020381,2]
[422250518,1778765442000,-500.0,0.00020547,2]
[422250513,1778765442000,-214.518505,0.000201,10]
[422250514,1778765442000,-5016.27,0.000202,2]
[422250517,1778765442000,-25430.50769213,0.00020448,2]
[422250515,1778765442000,-2682.57183977,0.00020271,2]
[422250532,1778765442000,-4985.79,0.00020548,2]
[422250533,1778765442000,-4985.79,0.00020548,2]
[422250521,1778765442000,-512.14862258,0.00020547,2]
[422250519,1778765442000,-500.0,0.00020547,2]
[422250530,1778765442000,-4985.79,0.00020548,2]
[422250534,1778765442000,-4985.79,0.00020548,2]
[422250542,1778765442000,-4985.79,0.00020548,2]
[422250540,1778765442000,-4985.79,0.00020548,2]
[422250538,1778765442000,-4985.79,0.00020548,2]
[422250535,1778765442000,-4985.79,0.00020548,2]
[422250528,1778765442000,-571.23232681,0.00020547,2]
[422250546,1778765442000,-4985.79,0.00020548,2]
[422250527,1778765442000,-571.05,0.00020547,2]
[422250526,1778765442000,-571.05,0.00020547,2]
[422250525,1778765442000,-571.05,0.00020547,2]
[422250529,1778765442000,-4985.79,0.00020548,2]
[422250523,1778765442000,-571.05,0.00020547,2]
[422250531,1778765442000,-4985.79,0.00020548,2]
[422250626,1778765443000,-4279.0,0.00022,2]
[422250616,1778765443000,-1016.0,0.00021932,7]
[422250610,1778765443000,-5000.0,0.00021918,2]
[422250611,1778765443000,-150.0,0.00021918,2]
[422250612,1778765443000,-150.0,0.00021918,2]
[422250607,1778765443000,-482.55,0.00021841,2]
[422250603,1778765443000,-217.24178154,0.000215,22]
[422250606,1778765443000,-482.55,0.00021627,2]
[422250614,1778765443000,-599.0,0.00021932,7]
[422250604,1778765443000,-265.1535466,0.000215,22]
[422250615,1778765443000,-3215.0,0.00021932,7]
[422250608,1778765443000,-361.12313178,0.00021855,2]
[422250617,1778765443000,-500.0,0.00021934,2]
[422250622,1778765443000,-625.0,0.00021952,2]
[422250618,1778765443000,-500.0,0.00021934,2]
[422250623,1778765443000,-500.0,0.00021956,2]
[422250619,1778765443000,-569.5,0.00021934,2]
[422250620,1778765443000,-553.75,0.00021934,2]
[422250624,1778765443000,-208.0,0.00022,2]
[422250625,1778765443000,-2566.0,0.00022,2]
[422250629,1778765443000,-523.0,0.00022,2]
[422250630,1778765443000,-169.0,0.00022,2]
[422250631,1778765443000,-451.0,0.00022,2]
[422250627,1778765443000,-202.0,0.00022,2]
[422250637,1778765443000,-482.55,0.0002227,2]
[422250635,1778765443000,-1000.0,0.00022176,2]
[422250605,1778765443000,-268.06848537,0.000215,22]
[422250621,1778765443000,-1354.0,0.00021952,2]
[422250609,1778765443000,-2991.49051684,0.00021915,2]
[422250633,1778765443000,-482.55,0.00022055,2]
[422250602,1778765443000,-235.35607255,0.000215,22]
[422250575,1778765443000,-169.0,0.00021,2]
[422250574,1778765443000,-523.0,0.00021,2]
[422250577,1778765443000,-2367.0,0.00021,2]
[422250576,1778765443000,-451.0,0.00021,2]
[422250578,1778765443000,-161.8,0.00021,2]
[422250579,1778765443000,-161.8,0.00021,2]
[422250580,1778765443000,-161.8,0.00021,2]
[422250585,1778765443000,-161.84,0.00021,2]
[422250582,1778765443000,-161.8,0.00021,2]
[422250581,1778765443000,-161.8,0.00021,2]
[422250584,1778765443000,-161.8,0.00021,2]
[422250583,1778765443000,-161.8,0.00021,2]
[422250589,1778765443000,-157.0,0.00021,2]
[422250613,1778765443000,-18047.92,0.00021926,2]
[422250586,1778765443000,-525.0485446,0.00021,2]
[422250587,1778765443000,-157.0,0.00021,2]
[422250590,1778765443000,-157.0,0.00021,2]
[422250591,1778765443000,-157.0,0.00021,2]
[422250592,1778765443000,-157.0,0.00021,2]
[422250593,1778765443000,-157.0,0.00021018,3]
[422250598,1778765443000,-5584.68,0.00021273,2]
[422250599,1778765443000,-2884.75459676,0.00021367,2]
[422250594,1778765443000,-420.38,0.00021205,2]
[422250595,1778765443000,-3002.89,0.00021273,2]
[422250597,1778765443000,-2423.94,0.00021273,2]
[422250596,1778765443000,-329.59,0.00021273,2]
[422250601,1778765443000,-169.33001647,0.000215,22]
[422250600,1778765443000,-482.55,0.00021413,2]
[422250588,1778765443000,-157.0,0.00021,2]
[422250634,1778765443000,-2311.0,0.00022116,2]
[422250696,1778765443000,-200.0,0.00023,30]
[422250638,1778765443000,-1340.58,0.000223,7]
[422250669,1778765443000,-2000.0,0.00022606,2]
[422250677,1778765443000,-2000.0,0.00022651,2]
[422250667,1778765443000,-2000.0,0.00022606,2]
[422250671,1778765443000,-2000.0,0.00022606,2]
[422250672,1778765443000,-2000.0,0.00022606,2]
[422250673,1778765443000,-2000.0,0.00022606,2]
[422250675,1778765443000,-2000.0,0.00022651,2]
[422250674,1778765443000,-2000.0,0.00022651,2]
[422250670,1778765443000,-2000.0,0.00022606,2]
[422250679,1778765443000,-2000.0,0.00022651,2]
[422250678,1778765443000,-2000.0,0.00022651,2]
[422250682,1778765443000,-2000.0,0.00022651,2]
[422250681,1778765443000,-2000.0,0.00022651,2]
[422250680,1778765443000,-2000.0,0.00022651,2]
[422250689,1778765443000,-202.0,0.00023,2]
[422250684,1778765443000,-157.0,0.00022911,3]
[422250686,1778765443000,-2566.0,0.00023,2]
[422250687,1778765443000,-200.0,0.00023,30]
[422250683,1778765443000,-2000.0,0.00022651,2]
[422250685,1778765443000,-208.0,0.00023,2]
[422250688,1778765443000,-4279.0,0.00023,2]
[422250691,1778765443000,-165.01962833,0.00023,2]
[422250690,1778765443000,-200.0,0.00023,30]
[422250693,1778765443000,-200.0,0.00023,30]
[422250692,1778765443000,-523.0,0.00023,2]
[422250695,1778765443000,-451.0,0.00023,2]
[422250694,1778765443000,-169.0,0.00023,2]
[422250668,1778765443000,-2000.0,0.00022606,2]
[422250665,1778765443000,-2000.0,0.00022606,2]
[422250697,1778765443000,-2367.0,0.00023,2]
[422250676,1778765443000,-2000.0,0.00022651,2]
[422250666,1778765443000,-2000.0,0.00022606,2]
[422250632,1778765443000,-2367.0,0.00022,2]
[422250636,1778765443000,-200.0,0.00022176,2]
[422250640,1778765443000,-500.0,0.00022328,7]
[422250652,1778765443000,-2000.0,0.00022449,2]
[422250641,1778765443000,-840.228,0.00022328,7]
[422250646,1778765443000,-367.18619809,0.00022407,2]
[422250642,1778765443000,-376.36,0.00022342,2]
[422250650,1778765443000,-2000.0,0.00022449,2]
[422250651,1778765443000,-2000.0,0.00022449,2]
[422250645,1778765443000,-2572.9,0.00022353,2]
[422250643,1778765443000,-1270.0,0.00022345,2]
[422250644,1778765443000,-1223.0,0.00022345,2]
[422250639,1778765443000,-500.0,0.00022328,7]
[422250628,1778765443000,-153.0,0.00022,2]
[422250647,1778765443000,-513.81852191,0.00022407,2]
[422250648,1778765443000,-513.81852189,0.00022407,2]
[422250662,1778765443000,-156.57,0.00022603,2]
[422250659,1778765443000,-1269.02,0.00022466,2]
[422250660,1778765443000,-765.41,0.00022466,2]
[422250661,1778765443000,-482.58,0.00022484,2]
[422250656,1778765443000,-2000.0,0.00022449,2]
[422250663,1778765443000,-604.38728554,0.00022603,2]
[422250657,1778765443000,-2000.0,0.00022449,2]
[422250658,1778765443000,-2000.0,0.00022449,2]
[422250654,1778765443000,-2000.0,0.00022449,2]
[422250649,1778765443000,-2000.0,0.00022449,2]
[422250664,1778765443000,-2000.0,0.00022606,2]
[422250653,1778765443000,-2000.0,0.00022449,2]
[422250655,1778765443000,-2000.0,0.00022449,2]
[422250730,1778765444000,-159.0,0.00023,30]
[422250731,1778765444000,-159.0,0.00023,30]
[422250729,1778765444000,-162.0,0.00023,30]
[422250733,1778765444000,-159.0,0.00023,30]
[422250732,1778765444000,-159.0,0.00023,30]
[422250734,1778765444000,-159.0,0.00023,30]
[422250735,1778765444000,-159.0,0.00023,30]
[422250737,1778765444000,-159.0,0.00023,30]
[422250739,1778765444000,-159.0,0.00023,30]
[422250736,1778765444000,-159.0,0.00023,30]
[422250741,1778765444000,-159.0,0.00023,30]
[422250740,1778765444000,-159.0,0.00023,30]
[422250745,1778765444000,-159.0,0.00023,30]
[422250744,1778765444000,-159.0,0.00023,30]
[422250746,1778765444000,-159.0,0.00023,30]
[422250743,1778765444000,-159.0,0.00023,30]
[422250742,1778765444000,-159.0,0.00023,30]
[422250726,1778765444000,-154.0,0.00023,30]
[422250748,1778765444000,-160.0,0.00023,7]
[422250757,1778765444000,-1000.0,0.00023018,2]
[422250751,1778765444000,-1404.0,0.00023018,2]
[422250759,1778765444000,-1668.0,0.00023087,2]
[422250758,1778765444000,-617.0,0.00023018,2]
[422250750,1778765444000,-2000.0,0.00023018,2]
[422250754,1778765444000,-1000.0,0.00023018,2]
[422250755,1778765444000,-1000.0,0.00023018,2]
[422250738,1778765444000,-159.0,0.00023,30]
[422250718,1778765444000,-154.0,0.00023,30]
[422250723,1778765444000,-154.0,0.00023,30]
[422250721,1778765444000,-154.0,0.00023,30]
[422250752,1778765444000,-1000.0,0.00023018,2]
[422250701,1778765444000,-154.0,0.00023,30]
[422250698,1778765444000,-363.0,0.00023,30]
[422250699,1778765444000,-166.0,0.00023,30]
[422250700,1778765444000,-154.0,0.00023,30]
[422250702,1778765444000,-154.0,0.00023,30]
[422250705,1778765444000,-154.0,0.00023,30]
[422250703,1778765444000,-154.0,0.00023,30]
[422250704,1778765444000,-154.0,0.00023,30]
[422250714,1778765444000,-154.0,0.00023,30]
[422250715,1778765444000,-154.0,0.00023,30]
[422250709,1778765444000,-154.0,0.00023,30]
[422250724,1778765444000,-154.0,0.00023,30]
[422250706,1778765444000,-154.0,0.00023,30]
[422250713,1778765444000,-154.0,0.00023,30]
[422250707,1778765444000,-154.0,0.00023,30]
[422250710,1778765444000,-154.0,0.00023,30]
[422250712,1778765444000,-154.0,0.00023,30]
[422250717,1778765444000,-154.0,0.00023,30]
[422250728,1778765444000,-154.0,0.00023,30]
[422250727,1778765444000,-154.0,0.00023,30]
[422250716,1778765444000,-154.0,0.00023,30]
[422250719,1778765444000,-154.0,0.00023,30]
[422250725,1778765444000,-154.0,0.00023,30]
[422250720,1778765444000,-154.0,0.00023,30]
[422250722,1778765444000,-154.0,0.00023,30]
[422250708,1778765444000,-154.0,0.00023,30]
[422250711,1778765444000,-154.0,0.00023,30]
[422250753,1778765444000,-1000.0,0.00023018,2]
[422250747,1778765444000,-214.95940296,0.00023,7]
[422250788,1778765444000,-4279.0,0.00024,2]
[422250790,1778765444000,-523.0,0.00024,2]
[422250789,1778765444000,-202.0,0.00024,2]
[422250795,1778765444000,-308.0,0.000242,2]
[422250792,1778765444000,-451.0,0.00024,2]
[422250791,1778765444000,-169.0,0.00024,2]
[422250794,1778765444000,-208.3309892,0.00024,7]
[422250798,1778765444000,-200.0,0.000242,2]
[422250797,1778765444000,-314.0,0.000242,2]
[422250806,1778765444000,-1097.0,0.00024658,2]